Workbook

Sheet Sheet1
B2: 2019/20 - Key Portfolio Rate Calculator
B3: Complete Section 1 and then calculate the Key Portfolio rate in Section 2:
B5: 1 - Enter assignment details (optional)
B8: Enter the client booking charge | C8: 0 | J8: =IF(C8=0,IF(G8=0,0,G8),C8) -> 0
B11: Section 1 - Complete all fields
B14: Select the candidate's age range | F14: Enter the PAYE rate | G14: 0 | J14: =IF(G14=0,0,G14) -> 0
B16: Is the PAYE rate daily or hourly? | F16: Enter the weekly no. of hours/days | G16: 0
J17: =IF(G16=0,G16) -> 0
B19: Section 2 - Calculate the Key Portfolio rate
J23: =Data!C19 -> 0
J24: 0.95
B28: Calculated Key Portfolio rate (do not manually enter values)
G30: Key Portfolio rate is too low! Please increase to meet NMW requirements.
C31: =SPR -> 0 | J31: =VLOOKUP(AgeRange,'.'!I24:J29,2,FALSE) -> 
J32: =IF(RateType="Daily",IF(UR<(6.5*J31),"True","False"),IF(RateType="Hourly",IF(UR<J31,"True","False"))) -> FALSE
B34: Estimated additional agency margin
C37: =G40-G42 -> 0
B40: Approximate PAYE take-home | C40: =Calculation!F28 -> 0 | F40: Total cost to CER on PAYE | G40: =Calculation!F38+Calculation!F7 -> 0 | J40: =ROUND(C40*J24,2) -> 0
B42: Approximate Key take-home | C42: =Calculation!J28 -> 0 | F42: Total cost to CER on Key | G42: =Calculation!J7 -> 0
F44: Estimated additional CER Margin | G44: =G40-G42 -> 0
G47: Do not use after 5th April 2020
B50: Useful links:
B53: How to promote Key Portfolio to your candidates | F53: Register your candidate

Sheet Data (hidden)
A2: Input
B3: Total no of billers | C3: 1 | K3: please select | L3: Agency
A5: 1 | B5: Sector | C5: Education | D5: Select From List | J5: 10 | K5: Expenses:
A7: 2 | B7: Tax Code | C7: 1250L | D7: Tax Regime | F7: UK | K7: Total Expenses | M7: 0
A9: 3 | B9: Pay Cycle | C9: Weekly | D9: Select From List
A11: 4 | B11: Fee | C11: Portfolio | J11: 11 | K11: Options
C12: Percentage | H12: =IF(D13=0,C13,D13) -> 0.04
B13: a) Percent | C13: =IF($C$9='.'!$I$14,'.'!L3,IF(Data!$C$9='.'!$I$15,'.'!L6,'.'!L9)) -> 0.04 | K13: Student Loan | L13: NO | M13: Select From List
B14: b) MAX | C14: =IF($C$9='.'!$I$14,'.'!L4,IF(Data!$C$9='.'!$I$15,'.'!L7,'.'!L10)) -> 16 | K14: Post Graduate Loan | L14: NO | M14: Select From List
B15: c) Min | C15: =IF($C$9='.'!$I$14,'.'!L5,IF(Data!$C$9='.'!$I$15,'.'!L8,'.'!L11)) -> 0 | K15: NI Exempt | L15: NO | M15: Select From List
K16: HP Accrued | L16: NO | M16: Select From List
A17: 5 | B17: HP % | C17: 0.1207 | K17: Pension | L17: YES | M17: Select From List
A19: 6 | B19: Rate | C19: =IF(Sheet1!G14>0,Sheet1!G14,0) -> 0
D20: Select From List | K20: PAYROLL ONLY
A21: 7 | B21: Number of Days | C21: =IF(Sheet1!C16="Hourly",0,Sheet1!G16) -> 0
K22: No of periods | L22: 1
A23: 8 | B23: Number of Hours | C23: =IF(Sheet1!C16="Daily",0,Sheet1!G16) -> 0
A25: 9 | B25: Total Income | C25: =IF(C23>0,C23*C19,C21*C19) -> 0
A28: 10 | B28: HP Accrual | C28: 0
A30: 10
B31: Show Agency Savings | C31: YES

Sheet Calculation a (hidden)
E4: PAYE | G4: Portfolio | N4: PAYE | P4: Portfolio
A5: =IF(Data!C9="Weekly","Weekly Gross Income",IF(Data!C9="Fortnightly","Fortnightly Gross Income",IF(Data!C9="Monthly","Monthly Gross Income","4 Weekly Gross Income"))) -> Weekly Gross Income
B6: UNIT | D6: RATE
A7: Funds Received | B7: =IF(Data!$C$23>0,Data!$C$23,Data!$C$21) -> 0 | C7: @ | D7: =Data!C19 -> 0 | F7: =IF(Data!C5<>"",Data!$C$25,"") -> 0 | G7: ='Agency Report'!G5 -> 0 | H7: @ | I7: ='Agency Report'!G6 -> 0 | J7: ='Agency Report'!G5*'Agency Report'!G6 -> 0 | M7: Employee Income | Q7: =J30 -> 0
M8: Holiday Pay | Q8: =IF(Data!L16="NO",'Calculation a'!I28,0) -> 0
A9: Minimum Wage | I9: ='.'!D13 -> 0 | M9: Taxable Income | O9: =F7 -> 0 | Q9: =Q7+Q8 -> 0
A10: HP on Minimum Wage | I10: =ROUND(I9*Data!C17,2) -> 0 | S10: =ROUND((IF(Data!$C$9="Weekly",'.'!$A$3,0)),2) -> 166
A11: Auto-enrolment - Employer | I11: =ROUND(IF(Data!L17="yes",IF(IF(Data!C9="Weekly",IF(SUM(I9:I10)>'.'!E22,'.'!E22-'.'!E21,SUM(I9:I10)-'.'!E21),IF(Data!C9="Fortnightly",IF(SUM(I9:I10)>'.'!F22,'.'!F22-'.'!F21,SUM(I9:I10)-'.'!F21),IF(Data!C9="4 Weekly",IF(SUM(I9:I10)>'.'!H22,'.'!H22-'.'!H21,SUM(I9:I10)-'.'!H21),IF(Data!C9="Monthly",IF(SUM(I9:I10)>'.'!G22,'.'!G22-'.'!G21,SUM(I9:I10)-'.'!G21),0))))<0,0,IF(Data!C9="Weekly",IF(SUM(I9:I10)>'.'!E22,'.'!E22-'.'!E21,SUM(I9:I10)-'.'!E21),IF(Data!C9="Fortnightly",IF(SUM(I9:I10)>'.'!F22,'.'!F22-'.'!F21,SUM(I9:I10)-'.'!F21),IF(Data!C9="4 Weekly",IF(SUM(I9:I10)>'.'!H22,'.'!H22-'.'!H21,SUM(I9:I10)-'.'!H21),IF(Data!C9="Monthly",IF(SUM(I9:I10)>'.'!G22,'.'!G22-'.'!G21,SUM(I9:I10)-'.'!G21),0)))))*'.'!B22,0),2) -> 0 | M11: ERP - Reportable | Q11: =IF(Data!L17="yes",IF(IF(Data!C9="Weekly",IF(Q9>'.'!E22,'.'!E22-'.'!E21,Q9-'.'!E21),IF(Data!C9="Fortnightly",IF(Q9>'.'!F22,'.'!F22-'.'!F21,Q9-'.'!F21),IF(Data!C9="4 Weekly",IF(Q9>'.'!H22,'.'!H22-'.'!H21,Q9-'.'!H21),IF(Data!C9="Monthly",IF(Q9>'.'!G22,'.'!G22-'.'!G21,Q9-'.'!G21),0))))<0,0,IF(Data!C9="Weekly",IF(Q9>'.'!E22,'.'!E22-'.'!E21,Q9-'.'!E21),IF(Data!C9="Fortnightly",IF(Q9>'.'!F22,'.'!F22-'.'!F21,Q9-'.'!F21),IF(Data!C9="4 Weekly",IF(Q9>'.'!H22,'.'!H22-'.'!H21,Q9-'.'!H21),IF(Data!C9="Monthly",IF(Q9>'.'!G22,'.'!G22-'.'!G21,Q9-'.'!G21),0)))))*'.'!B22,0) -> 0
A12: Apprenticeship Levy | I12: =ROUND(SUM(I9:I10)*'.'!B5,2) -> 0
A13: ERNIC on Minimum Wage | I13: =ROUND(IF(IF(Data!C5<>"",IF('Calculation a'!I9+I10>'.'!A3,(IF(Data!C9="Monthly",+('Calculation a'!I9+I10-'.'!C3)*0.138,(IF(Data!C9="Fortnightly",+('Calculation a'!I9+I10-'.'!B3)*0.138,(IF(Data!C9="4 weekly",+('Calculation a'!I9+I10-'.'!D3)*0.138,('Calculation a'!I9+I10-'.'!A3)*0.138)))))),0),"")<0,0,IF(Data!C5<>"",IF('Calculation a'!I9+I10>'.'!A3,(IF(Data!C9="Monthly",+('Calculation a'!I9+I10-'.'!C3)*0.138,(IF(Data!C9="Fortnightly",+('Calculation a'!I9+I10-'.'!B3)*0.138,(IF(Data!C9="4 weekly",+('Calculation a'!I9+I10-'.'!D3)*0.138,('Calculation a'!I9+I10-'.'!A3)*0.138)))))),0),"")),2) -> 0 | M13: Income Tax | N13: =IF(Data!F7="S",'PAYE rates'!B39,'PAYE rates'!B19) -> 0 | P13: =IF(Data!F7="S",'Umbrella rates'!B39,'Umbrella rates'!B19) -> 0 | S13: =ROUND((IF(Data!$C$9="Fortnightly",'.'!$B$3)),2) -> 0
A14: Amount for Deduction | I14: =J7-SUM(I9:I13) -> 0 | M14: Employee's National Insurance | N14: =IF(Data!L15="YES",0,'PAYE rates'!B56) -> 0 | P14: =IF(Data!L15="YES",0,'Umbrella rates'!B56) -> 0 | S14: =ROUND((IF(Data!$C$9="Monthly",'.'!$C$3)),2) -> 0
M15: Student Loan | N15: =ROUNDDOWN(IF(Data!L13="Plan 1",'.'!F25,IF(Data!L13="Plan 2",'.'!F26,0)),0) -> 0 | P15: =ROUNDDOWN(IF(Data!L13="Plan 1",'.'!G25,IF(Data!L13="Plan 2",'.'!G26,0)),0) -> 0 | S15: =ROUND((IF(Data!$C$9="4 weekly",'.'!$D$3,0)),2) -> 0
M16: Post Graduate Loan | N16: =ROUNDDOWN(IF(Data!L14="YES",'.'!F27,0),0) -> 0 | O16: =IF(Data!C5<>"",SUM(N13:N16),"") -> 0 | P16: =ROUNDDOWN(IF(Data!L14="YES",'.'!G27,0),0) -> 0 | Q16: =IF(Data!C5<>"",SUM(P13:P16),"") -> 0 | S16: =SUM(S10:S15)*Data!L22 -> 166
A17: Expenditure
A18: Margin | I18: =IF(K21<0,0,K21) -> 0 | M18: Net Salary | O18: =IF(Data!C5<>"",O9-O16,"") -> 0 | Q18: =IF(Data!C5<>"",Q9-Q16,"") -> 0
A19: Expenses | I19: =IF(I14<0,0,IF(Data!M7>'.'!D14,'.'!D14,Data!M7)) -> 0 | J19: =IF(Data!C5<>"",I19+I18,"") -> 0 | M19: Expenses | Q19: =I19 -> 0
M20: Auto-enrolment - Employee | O20: =IF(Data!L17="yes",(IF(IF(Data!C9="Weekly",IF(O9>'.'!E22,'.'!E22-'.'!E21,O9-'.'!E21),IF(Data!C9="Fortnightly",IF(O9>'.'!F22,'.'!F22-'.'!F21,O9-'.'!F21),IF(Data!C9="4 Weekly",IF(O9>'.'!H22,'.'!H22-'.'!H21,O9-'.'!H21),IF(Data!C9="Monthly",IF(O9>'.'!G22,'.'!G22-'.'!G21,O9-'.'!G21),0))))<0,0,IF(Data!C9="Weekly",IF(O9>'.'!E22,'.'!E22-'.'!E21,O9-'.'!E21),IF(Data!C9="Fortnightly",IF(O9>'.'!F22,'.'!F22-'.'!F21,O9-'.'!F21),IF(Data!C9="4 Weekly",IF(O9>'.'!H22,'.'!H22-'.'!H21,O9-'.'!H21),IF(Data!C9="Monthly",IF(O9>'.'!G22,'.'!G22-'.'!G21,O9-'.'!G21),0)))))*'.'!B21)*'.'!C20,0) -> 0 | Q20: =IF(Data!L17="yes",(IF(IF(Data!C9="Weekly",IF(Q9>'.'!E22,'.'!E22-'.'!E21,Q9-'.'!E21),IF(Data!C9="Fortnightly",IF(Q9>'.'!F22,'.'!F22-'.'!F21,Q9-'.'!F21),IF(Data!C9="4 Weekly",IF(Q9>'.'!H22,'.'!H22-'.'!H21,Q9-'.'!H21),IF(Data!C9="Monthly",IF(Q9>'.'!G22,'.'!G22-'.'!G21,Q9-'.'!G21),0))))<0,0,IF(Data!C9="Weekly",IF(Q9>'.'!E22,'.'!E22-'.'!E21,Q9-'.'!E21),IF(Data!C9="Fortnightly",IF(Q9>'.'!F22,'.'!F22-'.'!F21,Q9-'.'!F21),IF(Data!C9="4 Weekly",IF(Q9>'.'!H22,'.'!H22-'.'!H21,Q9-'.'!H21),IF(Data!C9="Monthly",IF(Q9>'.'!G22,'.'!G22-'.'!G21,Q9-'.'!G21),0)))))*'.'!B21)*'.'!C20,0) -> 0
K21: =IF(IF(J7=0,0,IF(J7*Data!C13<Data!C15,Data!C15,IF(J7*Data!C13>Data!C14,Data!C14,J7*Data!C13)))>I14,I14,IF(J7=0,0,IF(J7*Data!C13<Data!C15,Data!C15,IF(J7*Data!C13>Data!C14,Data!C14,J7*Data!C13)))) -> 0 | M21: Payment to Bank Account | O21: =IF(Data!C5<>"",SUM(O18:O19)-O20,"") -> 0 | Q21: =IF(Data!C5<>"",SUM(Q18:Q19)-Q20,"") -> 0
M22: Transfer to Holiday Pay Reserve | Q22: =IF(Data!L16="NO",0,'Calculation a'!I28) -> 0
A24: Income | J24: =J7-J19 -> 0 | M24: ERP- Reportable Reserve | Q24: =I25-Q11 -> 0
A25: Auto-enrolment - Employer | I25: =ROUND(IF(Data!L17="yes",IF(IF(Data!C9="Weekly",IF(J24-I27-I26>'.'!E22,'.'!E22-'.'!E21,J24-I27-I26-'.'!E21),IF(Data!C9="Fortnightly",IF(J24-I27-I26>'.'!F22,'.'!F22-'.'!F21,J24-I27-I26-'.'!F21),IF(Data!C9="4 Weekly",IF(J24-I27-I26>'.'!H22,'.'!H22-'.'!H21,J24-I27-I26-'.'!H21),IF(Data!C9="Monthly",IF(J24-I27-I26>'.'!G22,'.'!G22-'.'!G21,J24-I27-I26-'.'!G21),0))))<0,0,IF(Data!C9="Weekly",IF(J24-I27-I26-I25>'.'!E22,('.'!E22-'.'!E21)*'.'!B22,(J24-I27-I26-'.'!E21)*'.'!B22/(1+'.'!B22)),IF(Data!C9="Fortnightly",IF(J24-I27-I26-I25>'.'!F22,('.'!F22-'.'!F21)*'.'!B22,(J24-I27-I26-'.'!F21)*'.'!B22/(1+'.'!B22)),IF(Data!C9="4 Weekly",IF(J24-I27-I26-I25>'.'!H22,('.'!H22-'.'!H21)*'.'!B22,(J24-I27-I26-I25-'.'!H21)*'.'!B22/(1+'.'!B22)),IF(Data!C9="Monthly",IF(J24-I27-I26>'.'!G22,('.'!G22-'.'!G21)*'.'!B22,(J24-I27-I26-'.'!G21)*'.'!B22/(1+'.'!B22)),0))))),0),2) -> 0 | M25: Percentage Take-home | O25: =IF(Data!C5<>"",IF(F7=0,0,+O21/F7),"") -> 0 | Q25: =IF(Data!C5<>"",IF(J7=0,0,+Q21/J7),"") -> 0
A26: Apprenticeship Levy | I26: =ROUND((J24-I27-I25)*'.'!B5/(1+'.'!B5),2) -> 0
A27: Employer's National Insurance | I27: =ROUND(IF(J24-I25-I26-S16<0,0,(J24-I25-I26-S16)*'.'!A1/(1+'.'!A1)),2) -> 0 | M27: =IF(Data!$C$31="yes","Employer's National Insurance under PAYE","") -> Employer's National Insurance under PAYE | O27: =IF(IJ44<0,0,IJ44) -> 0 | Q27: =O27 -> 0
A28: Holiday Pay | I28: =ROUND(IF(J24<0,0,(J24-I27-I25-I26)*Data!C17/(1+Data!C17)),2) -> 0 | J28: =SUM(I25:I28) -> 0 | M28: =IF(Data!$C$31="yes","Employer's National Paid by AGENCY","") -> Employer's National Paid by AGENCY | O28: =IF(Data!C31="YES",O27,0) -> 0 | Q28: =IF(Data!L3="Agency",IF(Data!C5<>"",0,""),"") -> 0
A30: Employee Income | F30: =+F7 -> 0 | J30: =IF(Data!C5<>"",+J24-J28,"") -> 0 | M30: =IF(Data!$C$31="yes","Saving in Employer's National Insurance","") -> Saving in Employer's National Insurance | O30: =IF(Data!L3="Agency",IF(Data!C5<>"",O27-O28,""),"") -> 0 | Q30: =IF(Data!L3="Agency",IF(Data!C5<>"",Q27-Q28,0),0) -> 0
M32: =IF(Data!$C$31="Yes","Percentage Agency Saving","") -> Percentage Agency Saving | O32: =IF(Data!L3="Agency",IF(Data!C5<>"",IF(F7=0,0,O30/O27),""),"") -> 0 | Q32: =IF(Data!L3="Agency",IF(Data!C5<>"",IF(J7=0,0,Q30/Q27),""),"") -> 0
IJ44: =IF(Data!L3="Agency",IF(Data!C31="yes",IF(Data!C9="monthly",('Calculation a'!F7-'.'!C3)*'.'!A1,(IF(Data!C9="4 Weekly",('Calculation a'!F7-'.'!D3)*'.'!A1,IF(Data!C9="Fortnightly",('Calculation a'!F7-'.'!B3)*'.'!A1,('Calculation a'!F7-'.'!A3)*'.'!A1))))),"") -> -22.908
XEX47: =IF(Data!L3="Agency",1,0) -> 1

Sheet Calculation (hidden)
E4: PAYE | G4: Portfolio
A5: =IF(Data!C9="Weekly","Weekly Gross Income",IF(Data!C9="Fortnightly","Fortnightly Gross Income",IF(Data!C9="Monthly","Monthly Gross Income","4 Weekly Gross Income"))) -> Weekly Gross Income
B6: UNIT | D6: RATE
A7: Funds Received | B7: ='Calculation a'!B7 -> 0 | C7: @ | D7: ='Calculation a'!D7 -> 0 | F7: ='Calculation a'!F7 -> 0 | G7: ='Calculation a'!G7 -> 0 | H7: @ | I7: ='Calculation a'!I7 -> 0 | J7: ='Calculation a'!J7 -> 0
A9: Expenditure | L9: Employers Outgoings
A10: Margin | I10: ='Calculation a'!I18 -> 0 | L10: Employer’s National Insurance | M10: ='Calculation a'!I27 -> 0
A11: Employers Outgoings | I11: =SUM(M10:M12) -> 0 | L11: Apprenticeship Levy | M11: ='Calculation a'!I26 -> 0
A12: Holiday Pay | I12: ='Calculation a'!I28 -> 0 | L12: Employer’s Pension Contribution | M12: ='Calculation a'!I25 -> 0
A13: Expenses | I13: ='Calculation a'!I19 -> 0 | J13: =SUM(I10:I13) -> 0 | M13: =SUM(M10:M12) -> 0
A15: Gross Salary | J15: ='Calculation a'!Q7 -> 0
A16: Holiday Pay | J16: ='Calculation a'!Q8 -> 0
A17: Taxable Income | F17: =F7 -> 0 | J17: ='Calculation a'!Q9 -> 0
A19: Income Tax | E19: ='Calculation a'!N13 -> 0 | I19: ='Calculation a'!P13 -> 0
A20: Employee's National Insurance | E20: ='Calculation a'!N14 -> 0 | I20: ='Calculation a'!P14 -> 0
A21: Student Loan | E21: ='Calculation a'!N15 -> 0 | I21: ='Calculation a'!P15 -> 0
A22: Post Graduate Loan | E22: ='Calculation a'!N16 -> 0 | F22: ='Calculation a'!O16 -> 0 | I22: ='Calculation a'!P16 -> 0 | J22: ='Calculation a'!Q16 -> 0
A24: Net Salary | F24: ='Calculation a'!O18 -> 0 | J24: ='Calculation a'!Q18 -> 0
A25: Expenses | J25: ='Calculation a'!Q19 -> 0
A27: Employee’s Pension Contribution | F27: ='Calculation a'!O20 -> 0 | J27: ='Calculation a'!Q20 -> 0
A28: Payment to Bank Account | F28: ='Calculation a'!O21 -> 0 | J28: =ROUND('Calculation a'!Q21,2) -> 0
A30: Transfer to Holiday Pay Reserve | J30: ='Calculation a'!Q22 -> 0
A31: ERP- Reportable Reserve | J31: ='Calculation a'!Q24 -> 0
A33: Percentage Take-home | F33: =IF(Data!C5<>"",IF(F7=0,0,+F28/F7),"") -> 0 | J33: =IF(Data!C5<>"",IF(J7=0,0,+J28/J7),"") -> 0
A34: Agency’s PAYE Liabilities
A35: =IF(Data!$C$31="yes","Employer's National Insurance","") -> Employer's National Insurance | F35: ='Calculation a'!O27 -> 0 | J35: 0
A36: Apprenticeship Levy | F36: =F17*0.5% -> 0 | J36: 0
A37: Employer’s Pension Contribution | F37: =IF(Data!L17="yes",IF(IF(Data!C9="Weekly",IF(F7>'.'!E22,'.'!E22-'.'!E21,F7-'.'!E21),IF(Data!C9="Fortnightly",IF(F7>'.'!F22,'.'!F22-'.'!F21,F7-'.'!F21),IF(Data!C9="4 Weekly",IF(F7>'.'!H22,'.'!H22-'.'!H21,F7-'.'!H21),IF(Data!C9="Monthly",IF(F7>'.'!G22,'.'!G22-'.'!G21,F7-'.'!G21),0))))<0,0,IF(Data!C9="Weekly",IF(F7>'.'!E22,'.'!E22-'.'!E21,F7-'.'!E21),IF(Data!C9="Fortnightly",IF(F7>'.'!F22,'.'!F22-'.'!F21,F7-'.'!F21),IF(Data!C9="4 Weekly",IF(F7>'.'!H22,'.'!H22-'.'!H21,F7-'.'!H21),IF(Data!C9="Monthly",IF(F7>'.'!G22,'.'!G22-'.'!G21,F7-'.'!G21),0)))))*'.'!B22,0) -> 0 | J37: 0
A38: Total | F38: =SUM(F35:F37) -> 0 | J38: 0
A39: Total Agency Saving | F39: =IF(Data!L3="Agency",IF(Data!C5<>"",0,""),"") -> 0 | J39: =IF(Data!L3="Agency",IF(Data!C5<>"",F38-J38,0),0) -> 0
A40: =IF(Data!$C$31="Yes","Percentage Agency Saving","") -> Percentage Agency Saving | F40: =IF(Data!L3="Agency",IF(Data!C5<>"",IF(F7=0,0,F39/F35),""),"") -> 0 | J40: =IF(Data!L3="Agency",IF(Data!C5<>"",IF(J7=0,0,J39/F38),""),"") -> 0

Sheet PAYE VS Portfolio (hidden)
E4: PAYE | G4: Portfolio | L4: PAYE | N4: Portfolio
A5: =IF(Data!C9="Weekly","Weekly Gross Income",IF(Data!C9="Fortnightly","Fortnightly Gross Income",IF(Data!C9="Monthly","Monthly Gross Income","4 Weekly Gross Income"))) -> Weekly Gross Income
B6: UNIT | D6: RATE
A7: Funds Received | B7: ='Calculation a'!B7 -> 0 | C7: @ | D7: ='Calculation a'!D7 -> 0 | F7: ='Calculation a'!F7 -> 0 | G7: ='Calculation a'!G7 -> 0 | H7: @ | I7: ='Calculation a'!I7 -> 0 | J7: ='Calculation a'!J7 -> 0 | K7: Taxable Income | O7: ='Calculation a'!Q7 -> 0
K8: Holiday Pay (advance payment from Holiday Pay Reserve) | O8: ='Calculation a'!Q8 -> 0
A9: Minimum Wage | I9: ='Calculation a'!I9 -> 0 | K9: Gross Salary | M9: ='Calculation a'!O9 -> 0 | O9: ='Calculation a'!Q9 -> 0
A10: HP on Minimum Wage | I10: ='Calculation a'!I10 -> 0
A11: ERNIC on Minimum Wage | I11: ='Calculation a'!I13 -> 0 | K11: Income Tax | L11: ='Calculation a'!N13 -> 0 | N11: ='Calculation a'!P13 -> 0
A12: Amount for Deduction | I12: ='Calculation a'!I14 -> 0 | K12: Employee's National Insurance | L12: ='Calculation a'!N16 -> 0 | M12: ='Calculation a'!O16 -> 0 | N12: ='Calculation a'!P16 -> 0 | O12: ='Calculation a'!Q16 -> 0
K14: Net Salary | M14: ='Calculation a'!O18 -> 0 | O14: ='Calculation a'!Q18 -> 0
A15: Expenditure | K15: Expenses | O15: ='Calculation a'!Q19 -> 0
A16: Margin | I16: ='Calculation a'!I18 -> 0
A17: Expenses | I17: ='Calculation a'!I19 -> 0 | J17: ='Calculation a'!J19 -> 0 | K17: Payment to Bank Account | M17: ='Calculation a'!O21 -> 0 | O17: ='Calculation a'!Q21 -> 0
K19: Transfer to Holiday Pay Reserve | O19: ='Calculation a'!Q22 -> 0
A21: Income | J21: ='Calculation a'!J24 -> 0 | K21: Percentage Take-home | M21: ='Calculation a'!O25 -> 0 | O21: ='Calculation a'!Q25 -> 0
A22: Employer's National Insurance | I22: ='Calculation a'!I27 -> 0
A23: Transfer to Holiday Pay Reserve | I23: ='Calculation a'!I28 -> 0 | J23: ='Calculation a'!J28 -> 0 | K23: =IF(Data!$C$31="yes","Employer's National Insurance under PAYE","") -> Employer's National Insurance under PAYE | M23: ='Calculation a'!O27 -> 0 | O23: ='Calculation a'!Q27 -> 0
K24: =IF(Data!$C$31="yes","Employer's National Paid by AGENCY","") -> Employer's National Paid by AGENCY | M24: ='Calculation a'!O28 -> 0 | O24: ='Calculation a'!Q28 -> 0
A25: Taxable Income | F25: ='Calculation a'!F30 -> 0 | J25: ='Calculation a'!J30 -> 0
K26: =IF(Data!$C$31="yes","Saving in Employer's National Insurance","") -> Saving in Employer's National Insurance | M26: ='Calculation a'!O30 -> 0 | O26: ='Calculation a'!Q30 -> 0
K28: =IF(Data!$C$31="Yes","Percentage Agency Saving","") -> Percentage Agency Saving | M28: ='Calculation a'!O32 -> 0 | O28: ='Calculation a'!Q32 -> 0
IH38: =IF(Data!L3="Agency",IF(Data!C31="yes",IF(Data!C9="monthly",('PAYE VS Portfolio'!F7-'.'!C3)*'.'!A1,(IF(Data!C9="4 Weekly",('PAYE VS Portfolio'!F7-'.'!D3)*'.'!A1,IF(Data!C9="Fortnightly",('PAYE VS Portfolio'!F7-'.'!B3)*'.'!A1,('PAYE VS Portfolio'!F7-'.'!A3)*'.'!A1))))),"") -> -22.908
XEV41: =IF(Data!L3="Agency",1,0) -> 1

Sheet Agency Report (hidden)
C2: PAYE | F2: Portfolio
C5: UNITS | D5: =IF(Data!$C$23>0,Data!$C$23,Data!$C$21) -> 0 | F5: UNITS | G5: =IF(Data!$C$23>0,Data!$C$23,Data!$C$21) -> 0
A6: RATES | C6: RATE | D6: =IF(Data!L3="Agency",Data!C19,"") -> 0 | F6: RATE | G6: =ROUND(Sheet1!C31,2) -> 0
A8: Total Gross For
A9: All Candidates | D9: =IF(Data!L3="Agency",D15*Data!C3,"") -> 0 | G9: =IF(Data!L3="Agency",Data!C3*'Agency Report'!G15,"") -> 0
A11: Total ERNI for
A12: All Candidates | D12: =IF(Data!L3="Agency",D21*Data!C3,"") -> 0 | G12: 0
A14: Gross pay
A15: per Candidate | D15: =IF(Data!L3="Agency",'Calculation a'!F7,"") -> 0 | G15: =IF(Data!L3="Agency",G5*G6,0)-ROUND(IF(Data!L16="NO",0,(G5*G6)*Data!C17),2) -> 0
A17: Net Pay
A18: per Candidate | D18: =IF(Data!L3="Agency",'Calculation a'!O21,"") -> 0 | G18: =IF(Data!L3="Agency",'Calculation a'!Q21,"") -> 0
A20: ERNI payable
A21: per Candidate | D21: ='Calculation a'!O28 -> 0 | G21: 0
A23: Agency ERNI Saving
A24: per Candidate | D24: =IF(Data!L3="Agency",'Calculation a'!F42-'Calculation a'!F43,"") -> 0 | G24: ='Calculation a'!Q30-('Calculation a'!J7-'Calculation a'!F7) -> 0
A26: Overall Saving
A27: All Candidates | D27: =IF(Data!L3="Agency",D24*Data!$C$3,"") -> 0 | G27: =IF(Data!L3="Agency",G24*Data!$C$3,"") -> 0

Sheet . (hidden)
A1: 0.138 | B1: Employers NI Allowance | J1: Fees
A2: Weekly | B2: Fortnightly | C2: Monthly | D2: 4 Weekly | J2: Education | K2: Non-Educatiion
A3: 166 | B3: =A3*2 -> 332 | C3: 719 | D3: =A3*4 -> 664 | G3: Weekly | I3: Precent | J3: 0.04 | K3: 0.04 | L3: =IF(Data!$C$5='.'!$H$16,'.'!K3,'.'!J3) -> 0.04
I4: Max | J4: 16 | K4: 16 | L4: =IF(Data!$C$5='.'!$H$16,'.'!K4,'.'!J4) -> 16
A5: Apprenticeship Levy | B5: 0.005 | D5: Min WAGE | E5: 8.21 | I5: Min | J5: 0 | K5: 0 | L5: =IF(Data!$C$5='.'!$H$16,'.'!K5,'.'!J5) -> 0
G6: Fortnightly | I6: Precent | J6: 0.04 | K6: 0.04 | L6: =IF(Data!$C$5='.'!$H$16,'.'!K6,'.'!J6) -> 0.04
B7: Weekly Salary | C7: Fortnightly Salary | D7: 4 weekly | E7: monthly Salary | F7: Yearly Salary | I7: Max | J7: 32 | K7: 32 | L7: =IF(Data!$C$5='.'!$H$16,'.'!K7,'.'!J7) -> 32
A8: Edu | B8: =Data!C21*'.'!$A$18*E5 -> 0 | C8: =Data!C21*'.'!$A$18*E5 -> 0 | D8: =Data!C21*'.'!$A$18*E5 -> 0 | E8: =Data!C21*'.'!$A$18*E5 -> 0 | I8: Min | J8: 0 | K8: 0 | L8: =IF(Data!$C$5='.'!$H$16,'.'!K8,'.'!J8) -> 0
A9: Rest | B9: =Data!C21*'.'!$C$18*E5 -> 0 | C9: =Data!C21*'.'!C18*E5 -> 0 | D9: =Data!C21*'.'!C18*E5 -> 0 | E9: =Data!C21*'.'!C18*E5 -> 0 | G9: 4 weekly/Monthly | I9: Precent | J9: 0.04 | K9: 0.04 | L9: =IF(Data!$C$5='.'!$H$16,'.'!K9,'.'!J9) -> 0.04
A10: Port | B10: =Data!C21*'.'!$D$18*E5 -> 0 | C10: =Data!C21*'.'!$D$18*E5 -> 0 | D10: =Data!C21*'.'!$D$18*E5 -> 0 | E10: =Data!C21*'.'!$D$18*E5 -> 0 | I10: Max | J10: 60 | K10: 60 | L10: =IF(Data!$C$5='.'!$H$16,'.'!K10,'.'!J10) -> 60
B11: =Data!C21*'.'!$B$18*E5 -> 0 | C11: =Data!C21*'.'!B18*E5 -> 0 | D11: =Data!C21*'.'!B18*E5 -> 0 | E11: =Data!C21*'.'!B18*E5 -> 0 | I11: Min | J11: 0 | K11: 0 | L11: =IF(Data!$C$5='.'!$H$16,'.'!K11,'.'!J11) -> 0
F12: =IF(Data!C5<>"",IF('Calculation a'!J24>A3,(IF(Data!C9="Monthly",+('Calculation a'!J24-C3)*0.138/1.138,(IF(Data!C9="Fortnightly",+('Calculation a'!J24-B3)*0.138/1.138,(IF(Data!C9="4 weekly",+('Calculation a'!J24-D3)*0.138/1.138,('Calculation a'!J24-A3)*0.138/1.138)))))),0),"") -> 0 | H12: Drop downs
B13: Threshold | C13: Min wage | D13: =IF(Data!C23>0,Data!C23*'.'!E5,IF(Data!C5="Education",A18*Data!C21*E5+F13,IF(Data!C5='.'!H15,'.'!D18*Data!C21*'.'!E5+F13,IF(Data!C5='.'!H16,'.'!D18*Data!C21*'.'!E5+F13,D18*Data!C21*E5+F13)))) -> 0 | F13: 0 | I13: Frequency
C14: Expenses | D14: ='Calculation a'!I14-'Calculation a'!I18 -> 0 | G14: 1250L | H14: Education | I14: Weekly | J14: YES
G15: 0T | H15: Medical And Social Care | I15: Fortnightly | J15: NO
A16: Sector Days | G16: BR | H16: Other Industries | I16: Monthly | J16: Please Select
A17: Education | B17: 7.5 | C17: REST | D17: Portfolio | G17: D0 | I17: 4 Weekly
A18: 6 | B18: 7.5 | C18: 8 | D18: 7 | G18: D1
G19: D2
A20: Auto-enrolment | C20: 0.8 | E20: Weekly | F20: Fortnightly | G20: Monthly | H20: 4 Weekly
A21: Employee | B21: 0.05 | D21: Low | E21: 118 | F21: =E21*2 -> 236 | G21: 512 | H21: =E21*4 -> 472
A22: Employer | B22: 0.03 | D22: Higher | E22: 962 | F22: 1924 | G22: 4167 | H22: 3847
B24: Week | C24: Month | D24: % | E24: Threshold | F24: PAYE | G24: Umbrella | I24: Employee Age | J24: Minimum Hourly Umbrella Rate | K24: Minimum Daily Umbrella Rate
A25: Plan 1 | B25: 364 | C25: 1577 | D25: 0.09 | E25: =IF(Data!C9="WEEKLY",'.'!B25,IF(Data!C9="Fortnightly",'.'!B25*2,IF(Data!C9="Monthly",'.'!C25,'.'!B25*4)))*Data!L22 -> 364 | F25: =IF('Calculation a'!O9>'.'!E25,('Calculation a'!O9-'.'!E25)*'.'!D25,0) -> 0 | G25: =IF('Calculation a'!Q9>'.'!E25,('Calculation a'!Q9-'.'!E25)*'.'!D25,0) -> 0 | K25: (6.5 Hour Day)
A26: Plan 2 | B26: 494 | C26: 2143 | D26: 0.09 | E26: =IF(Data!C9="WEEKLY",'.'!B26,IF(Data!C9="Fortnightly",'.'!B26*2,IF(Data!C9="Monthly",'.'!C26,'.'!B26*4)))*Data!L22 -> 494 | F26: =IF('Calculation a'!O9>'.'!E26,('Calculation a'!O9-'.'!E26)*'.'!D26,0) -> 0 | G26: =IF('Calculation a'!Q9>'.'!E26,('Calculation a'!Q9-'.'!E26)*'.'!D26,0) -> 0 | I26: 25 or over | J26: 10.3 | K26: 66.95
A27: PG | B27: 404 | C27: 1750 | D27: 0.06 | E27: =IF(Data!C9="WEEKLY",'.'!B27,IF(Data!C9="Fortnightly",'.'!B27*2,IF(Data!C9="Monthly",'.'!C27,'.'!B27*4)))*Data!L22 -> 404 | F27: =IF('Calculation a'!O9>'.'!E27,('Calculation a'!O9-'.'!E27)*'.'!D27,0) -> 0 | G27: =IF('Calculation a'!Q9>'.'!E27,('Calculation a'!Q9-'.'!E27)*'.'!D27,0) -> 0 | I27: 21-24 | J27: 9.6 | K27: 62.4
I28: 18-20 | J28: 7.55 | K28: 49.08
I29: Under 18 | J29: 5.75 | K29: 37.38

Sheet Umbrella rates (hidden)
B2: Scroll down for Scottish Tax Bands and Pension Calculations | I2: Input the Annual Allowance and Total Taxable Income and the calculations will be made for you!
B4: Annual Allowance | C4: =F4 -> 12500 | E4: =Data!C7 -> 1250L | F4: =IF(RIGHT(E4,1)="L",E5,IF(RIGHT(E4,1)="M",E5,IF(RIGHT(E4,1)="n",E5,IF(RIGHT(E4,1)="T",E5,0)))) -> 12500
B5: Total taxable income | C5: =Calculation!$J$17 -> 0 | E5: =(LEFT(E4,LEN(E4)-1))*10 -> 12500
B8: Income Tax Calculations | W8: weekly | X8: Fortnightly | Y8: 4-weekly | Z8: monthly
D9: Weekly | H9: F/nightly | L9: 4-weekly | P9: Monthly | V9: BR | W9: 721 | X9: 1442 | Y9: 2885 | Z9: 3125
D10: Allowance | E10: =C4/52*Data!L22 -> 240.3846154 | H10: Allowance | I10: =C4/26*Data!L22 -> 480.7692308 | L10: Allowance | M10: =C4/13*Data!L22 -> 961.5384615 | P10: Allowance | Q10: =C4/12*Data!L22 -> 1041.666667 | V10: HR | W10: 2163 | X10: 4327 | Y10: 8654 | Z10: 9375
D11: Income | E11: =C5 -> 0 | H11: Income | I11: =C5 -> 0 | L11: Income | M11: =C5 -> 0 | P11: Income | Q11: =C5 -> 0 | V11: AR | W11: 2885 | X11: 5770 | Y11: 11538 | Z11: 12500
D12: Minus PA | E12: =E11-E10 -> -240.3846154 | H12: Minus PA | I12: =I11-I10 -> -480.7692308 | L12: Minus PA | M12: =M11-M10 -> -961.5384615 | P12: Minus PA | Q12: =Q11-Q10 -> -1041.666667
E14: Tax | I14: Tax | M14: Tax | Q14: Tax
C15: 0.2 | D15: =IF(E12>BR_W,BR_W,E12) -> -240.3846154 | E15: =IF($E$4="BR",ROUNDDOWN($C$5,0)*C15,IF($E$4="d0",0,IF($E$4="D1",0,ROUNDDOWN(D15,0)*C15))) -> -48 | G15: 0.2 | H15: =IF(I12>BR_F,BR_F,I12) -> -480.7692308 | I15: =IF($E$4="BR",ROUNDDOWN($C$5,0)*G15,IF($E$4="d0",0,IF($E$4="D1",0,ROUNDDOWN(H15,0)*G15))) -> -96 | K15: 0.2 | L15: =IF(M12>BR_4W,BR_4W,M12) -> -961.5384615 | M15: =IF($E$4="BR",ROUNDDOWN($C$5,0)*K15,IF($E$4="d0",0,IF($E$4="D1",0,ROUNDDOWN(L15,0)*K15))) -> -192.2 | O15: 0.2 | P15: =IF(Q12>BR_M,BR_M,Q12) -> -1041.666667 | Q15: =IF($E$4="BR",ROUNDDOWN($C$5,0)*O15,IF($E$4="d0",0,IF($E$4="D1",0,ROUNDDOWN(P15,0)*O15))) -> -208.2 | T15: 37500
C16: 0.4 | D16: =IF(E12-D15>HR_W,HR_W,E12-D15) -> 0 | E16: =IF($E$4="D0",ROUNDDOWN($C$5,0)*C16,IF($E$4="BR",0,IF($E$4="D1",0,ROUNDDOWN(D16,0)*C16))) -> 0 | G16: 0.4 | H16: =IF(I12-H15>HR_F,HR_F,I12-H15) -> 0 | I16: =IF($E$4="D0",ROUNDDOWN($C$5,0)*G16,IF($E$4="BR",0,IF($E$4="D1",0,ROUNDDOWN(H16,0)*G16))) -> 0 | K16: 0.4 | L16: =IF(M12-L15>HR_4W,HR_4W,M12-L15) -> 0 | M16: =IF($E$4="D0",ROUNDDOWN($C$5,0)*K16,IF($E$4="BR",0,IF($E$4="D1",0,ROUNDDOWN(L16,0)*K16))) -> 0 | O16: 0.4 | P16: =IF(Q12-P15>HR_M,HR_M,Q12-P15) -> 0 | Q16: =IF($E$4="D0",ROUNDDOWN($C$5,0)*O16,IF($E$4="BR",0,IF($E$4="D1",0,ROUNDDOWN(P16,0)*O16))) -> 0 | T16: 112499
C17: 0.45 | D17: =E12-D15-D16 -> 0 | E17: =IF($E$4="D1",ROUNDDOWN($C$5,0)*C17,IF($E$4="d0",0,IF($E$4="BR",0,ROUNDDOWN(D17,0)*C17))) -> 0 | G17: 0.45 | H17: =I12-H15-H16 -> 0 | I17: =IF($E$4="D1",ROUNDDOWN($C$5,0)*G17,IF($E$4="d0",0,IF($E$4="BR",0,ROUNDDOWN(H17,0)*G17))) -> 0 | K17: 0.45 | L17: =M12-L15-L16 -> 0 | M17: =IF($E$4="D1",ROUNDDOWN($C$5,0)*K17,IF($E$4="d0",0,IF($E$4="BR",0,ROUNDDOWN(L17,0)*K17))) -> 0 | O17: 0.45 | P17: =Q12-P15-P16 -> 0 | Q17: =IF($E$4="D1",ROUNDDOWN($C$5,0)*O17,IF($E$4="d0",0,IF($E$4="BR",0,ROUNDDOWN(P17,0)*O17))) -> 0
B18: =IF(IF(Data!C9="WEEKLY",'Umbrella rates'!E19,IF(Data!C9="Fortnightly",'Umbrella rates'!I19,IF(Data!C9="monthly",'Umbrella rates'!Q19,'Umbrella rates'!M19)))<0,0,IF(Data!C9="WEEKLY",'Umbrella rates'!E19,IF(Data!C9="Fortnightly",'Umbrella rates'!I19,IF(Data!C9="monthly",'Umbrella rates'!Q19,'Umbrella rates'!M19)))) -> 0
B19: =IF(Data!C7="D2"," Invalid Tax Code",IF(B18<0,0,B18)) -> 0 | D19: Tax | E19: =SUM(E15:E18) -> -48 | H19: Tax | I19: =SUM(I15:I18) -> -96 | L19: Tax | M19: =SUM(M15:M18) -> -192.2 | P19: Tax | Q19: =SUM(Q15:Q18) -> -208.2
B23: Annual Allowance | C23: =F4 -> 12500 | G23: Anyone on a tax code that begins with S, will have these %s and bands applied for Income Tax.
B24: Taxable income | C24: ='Calculation a'!Q9 -> 0
B27: Scottish Income Tax
D28: Weekly | H28: F/nightly | L28: 4-weekly | P28: Monthly
D29: Income | E29: =C24 -> 0 | H29: Income | I29: =C24 -> 0 | L29: Income | M29: =C24 -> 0 | P29: Income | Q29: =C24 -> 0
D30: Minus PA | E30: =E29-E10 -> -240.3846154 | H30: Minus PA | I30: =I29-I10 -> -480.7692308 | L30: Minus PA | M30: =M29-M10 -> -961.5384615 | P30: Minus PA | Q30: =Q29-Q10 -> -1041.666667
E32: Tax | I32: Tax | M32: Tax | Q32: Tax | W32: weekly | X32: Fortnightly | Y32: 4-weekly | Z32: monthly
C33: 0.19 | D33: =IF(E30>W33,W33,E30) -> -240.3846154 | E33: =IF($E$4="BR",ROUNDDOWN(0,0)*C33,IF($E$4="D0",ROUNDDOWN(0,0)*C33,IF($E$4="D1",ROUNDDOWN(0,0)*C33,IF($E$4="D2",ROUNDDOWN(0,0)*C33,ROUNDDOWN(D33,0)*C33)))) -> -45.6 | G33: 0.19 | H33: =IF(I30>X33,X33,I30) -> -480.7692308 | I33: =IF($E$4="BR",ROUNDDOWN(0,0)*G33,IF($E$4="D0",ROUNDDOWN(0,0)*G33,IF($E$4="D1",ROUNDDOWN(0,0)*G33,IF($E$4="D2",ROUNDDOWN(0,0)*G33,ROUNDDOWN(H33,0)*G33)))) -> -91.2 | K33: 0.19 | L33: =IF(M30>Y33,Y33,M30) -> -961.5384615 | M33: =IF($E$4="BR",ROUNDDOWN(0,0)*K33,IF($E$4="D0",ROUNDDOWN(0,0)*K33,IF($E$4="D1",ROUNDDOWN(0,0)*K33,IF($E$4="D2",ROUNDDOWN(0,0)*K33,ROUNDDOWN(L33,0)*K33)))) -> -182.59 | O33: 0.19 | P33: =IF(Q30>Z33,Z33,Q30) -> -1041.666667 | Q33: =IF($E$4="BR",ROUNDDOWN(0,0)*O33,IF($E$4="D0",ROUNDDOWN(0,0)*O33,IF($E$4="D1",ROUNDDOWN(0,0)*O33,IF($E$4="D2",ROUNDDOWN(0,0)*O33,ROUNDDOWN(P33,0)*O33)))) -> -197.79 | V33: SR | W33: 39.4 | X33: 78.8 | Y33: 157.6 | Z33: 170.73
C34: 0.2 | D34: =IF(E30-D33>W34,W34,E30-D33) -> 0 | E34: =IF($E$4="BR",ROUNDDOWN($C$24,0)*C34,IF($E$4="D0",ROUNDDOWN(0,0)*C34,IF($E$4="D1",ROUNDDOWN(0,0)*C34,IF($E$4="D2",ROUNDDOWN(0,0)*C34,ROUNDDOWN(D34,0)*C34)))) -> 0 | G34: 0.2 | H34: =IF(I30-H33>X34,X34,I30-H33) -> 0 | I34: =IF($E$4="BR",ROUNDDOWN($C$24,0)*G34,IF($E$4="D0",ROUNDDOWN(0,0)*G34,IF($E$4="D1",ROUNDDOWN(0,0)*G34,IF($E$4="D2",ROUNDDOWN(0,0)*G34,ROUNDDOWN(H34,0)*G34)))) -> 0 | K34: 0.2 | L34: =IF(M30-L33>Y34,Y34,M30-L33) -> 0 | M34: =IF($E$4="BR",ROUNDDOWN($C$24,0)*K34,IF($E$4="D0",ROUNDDOWN(0,0)*K34,IF($E$4="D1",ROUNDDOWN(0,0)*K34,IF($E$4="D2",ROUNDDOWN(0,0)*K34,ROUNDDOWN(L34,0)*K34)))) -> 0 | O34: 0.2 | P34: =IF(Q30-P33>Z34,Z34,Q30-P33) -> 0 | Q34: =IF($E$4="BR",ROUNDDOWN($C$24,0)*O34,IF($E$4="D0",ROUNDDOWN(0,0)*O34,IF($E$4="D1",ROUNDDOWN(0,0)*O34,IF($E$4="D2",ROUNDDOWN(0,0)*O34,ROUNDDOWN(P34,0)*O34)))) -> 0 | V34: BR | W34: 199.9 | X34: 399.8 | Y34: 799.6 | Z34: 866.23
B35: D0 | C35: 0.21 | D35: =IF(E30-D33-D34>W35,W35,E30-D33-D34) -> 0 | E35: =IF($E$4="BR",ROUNDDOWN(0,0)*C35,IF($E$4="D0",ROUNDDOWN($C$24,0)*C35,IF($E$4="D1",ROUNDDOWN(0,0)*C35,IF($E$4="D2",ROUNDDOWN(0,0)*C35,ROUNDDOWN(D35,0)*C35)))) -> 0 | G35: 0.21 | H35: =IF(I30-H33-H34>X35,X35,I30-H33-H34) -> 0 | I35: =IF($E$4="BR",ROUNDDOWN(0,0)*G35,IF($E$4="D0",ROUNDDOWN($C$24,0)*G35,IF($E$4="D1",ROUNDDOWN(0,0)*G35,IF($E$4="D2",ROUNDDOWN(0,0)*G35,ROUNDDOWN(H35,0)*G35)))) -> 0 | K35: 0.21 | L35: =IF(M30-L33-L34>Y35,Y35,M30-L33-L34) -> 0 | M35: =IF($E$4="BR",ROUNDDOWN(0,0)*K35,IF($E$4="D0",ROUNDDOWN($C$24,0)*K35,IF($E$4="D1",ROUNDDOWN(0,0)*K35,IF($E$4="D2",ROUNDDOWN(0,0)*K35,ROUNDDOWN(L35,0)*K35)))) -> 0 | O35: 0.21 | P35: =IF(Q30-P33-P34>Z35,Z35,Q30-P33-P34) -> 0 | Q35: =IF($E$4="BR",ROUNDDOWN(0,0)*O35,IF($E$4="D0",ROUNDDOWN($C$24,0)*O35,IF($E$4="D1",ROUNDDOWN(0,0)*O35,IF($E$4="D2",ROUNDDOWN(0,0)*O35,ROUNDDOWN(P35,0)*O35)))) -> 0 | V35: IR | W35: 355.5 | X35: 711 | Y35: 1422 | Z35: 1540.5
B36: D1 | C36: 0.41 | D36: =IF(E30-D33-D34-D35>W36,W36,E30-D33-D34-D35) -> 0 | E36: =IF($E$4="BR",ROUNDDOWN(0,0)*C36,IF($E$4="D0",ROUNDDOWN(0,0)*C36,IF($E$4="D1",ROUNDDOWN($C$24,0)*C36,IF($E$4="D2",ROUNDDOWN(0,0)*C36,ROUNDDOWN(D36,0)*C36)))) -> 0 | G36: 0.41 | H36: =IF(I30-H33-H34-H35>X36,X36,I30-H33-H34-H35) -> 0 | I36: =IF($E$4="BR",ROUNDDOWN(0,0)*G36,IF($E$4="D0",ROUNDDOWN(0,0)*G36,IF($E$4="D1",ROUNDDOWN($C$24,0)*G36,IF($E$4="D2",ROUNDDOWN(0,0)*G36,ROUNDDOWN(H36,0)*G36)))) -> 0 | K36: 0.41 | L36: =IF(M30-L33-L34-L35>Y36,Y36,M30-L33-L34-L35) -> 0 | M36: =IF($E$4="BR",ROUNDDOWN(0,0)*K36,IF($E$4="D0",ROUNDDOWN(0,0)*K36,IF($E$4="D1",ROUNDDOWN($C$24,0)*K36,IF($E$4="D2",ROUNDDOWN(0,0)*K36,ROUNDDOWN(L36,0)*K36)))) -> 0 | O36: 0.41 | P36: =IF(Q30-P33-P34-P35>Z36,Z36,Q30-P33-P34-P35) -> 0 | Q36: =IF($E$4="BR",ROUNDDOWN(0,0)*O36,IF($E$4="D0",ROUNDDOWN(0,0)*O36,IF($E$4="D1",ROUNDDOWN($C$24,0)*O36,IF($E$4="D2",ROUNDDOWN(0,0)*O36,ROUNDDOWN(P36,0)*O36)))) -> 0 | V36: HR | W36: 2289.81 | X36: 4579.62 | Y36: 9159.24 | Z36: 9922.51
B37: D2 | C37: 0.46 | D37: =(E30-D33-D34-D35-D36) -> 0 | E37: =IF($E$4="BR",ROUNDDOWN(0,0)*C37,IF($E$4="D0",ROUNDDOWN(0,0)*C37,IF($E$4="D1",ROUNDDOWN(0,0)*C37,IF($E$4="D2",ROUNDDOWN($C$24,0)*C37,ROUNDDOWN(D37,0)*C37)))) -> 0 | G37: 0.46 | H37: =IF(H36=0,0,(I30-H33-H34-H35-H36)) -> 0 | I37: =IF($E$4="BR",ROUNDDOWN(0,0)*G37,IF($E$4="D0",ROUNDDOWN(0,0)*G37,IF($E$4="D1",ROUNDDOWN(0,0)*G37,IF($E$4="D2",ROUNDDOWN($C$24,0)*G37,ROUNDDOWN(H37,0)*G37)))) -> 0 | K37: 0.46 | L37: =IF(L36=0,0,(M30-L33-L34-L35-L36)) -> 0 | M37: =IF($E$4="BR",ROUNDDOWN(0,0)*K37,IF($E$4="D0",ROUNDDOWN(0,0)*K37,IF($E$4="D1",ROUNDDOWN(0,0)*K37,IF($E$4="D2",ROUNDDOWN($C$24,0)*K37,ROUNDDOWN(L37,0)*K37)))) -> 0 | O37: 0.46 | P37: =IF(P36=0,0,(Q30-P33-P34-P35-P36)) -> 0 | Q37: =IF($E$4="BR",ROUNDDOWN(0,0)*O37,IF($E$4="D0",ROUNDDOWN(0,0)*O37,IF($E$4="D1",ROUNDDOWN(0,0)*O37,IF($E$4="D2",ROUNDDOWN($C$24,0)*O37,ROUNDDOWN(P37,0)*O37)))) -> 0 | V37: AR | W37: 2884 | X37: 5768 | Y37: 11536 | Z37: 12497.33
B38: =IF(IF(Data!C9="WEEKLY",'Umbrella rates'!E39,IF(Data!C9="Fortnightly",'Umbrella rates'!I39,IF(Data!C9="monthly",'Umbrella rates'!Q39,'Umbrella rates'!M39)))<0,0,IF(Data!C9="WEEKLY",'Umbrella rates'!E39,IF(Data!C9="Fortnightly",'Umbrella rates'!I39,IF(Data!C9="monthly",'Umbrella rates'!Q39,'Umbrella rates'!M39)))) -> 0
B39: =IF(B38<0,0,B38) -> 0 | D39: Tax | E39: =SUM(E33:E38) -> -45.6 | H39: Tax | I39: =SUM(I33:I38) -> -91.2 | L39: Tax | M39: =SUM(M33:M38) -> -182.59 | P39: Tax | Q39: =SUM(Q33:Q38) -> -197.79
W43: weekly | X43: Fortnightly | Y43: 4-weekly | Z43: monthly
B44: Threshold rollover | C44: =Data!L22 -> 1 | E44: Input the number of pay periods rolled over. ALWAYS input 1 if on non-cumulative code. | V44: PT | W44: 166 | X44: 332 | Y44: 664 | Z44: 719
B45: Taxable income | C45: ='Calculation a'!Q9 -> 0 | V45: UEL | W45: 962 | X45: 1924 | Y45: 3848 | Z45: 4167
B47: National Insurance
D48: Weekly | H48: F/nightly | L48: 4-weekly | P48: Monthly
D49: Income | E49: =C45 -> 0 | H49: Income | I49: =C45 -> 0 | L49: Income | M49: =C45 -> 0 | P49: Income | Q49: =C45 -> 0
D50: Minus TH | E50: =E49-PT_Weekly*C44 -> -166 | H50: Minus TH | I50: =I49-PT_Fortnightly*C44 -> -332 | L50: Minus TH | M50: =M49-PT_4_Weekly*C44 -> -664 | P50: Minus TH | Q50: =Q49-PT_Monthly*C44 -> -719
E52: NI | I52: NI | M52: NI | Q52: NI
C53: 0.12 | D53: =IF(E50>UEL_weekly-PT_Weekly,UEL_weekly-PT_Weekly,E50) -> -166 | E53: =D53*0.12 -> -19.92 | G53: 0.12 | H53: =IF(I50>UEL_Fortnightly-PT_Fortnightly,UEL_Fortnightly-PT_Fortnightly,I50) -> -332 | I53: =H53*0.12 -> -39.84 | K53: 0.12 | L53: =IF(M50>UEL_4weekly-PT_4_Weekly,(UEL_4weekly-PT_4_Weekly),M50) -> -664 | M53: =L53*0.12 -> -79.68 | O53: 0.12 | P53: =IF(Q50>UEL_monthly-PT_Monthly,UEL_monthly-PT_Monthly,Q50) -> -719 | Q53: =P53*0.12 -> -86.28
C54: 0.02 | D54: =IF(D53=UEL_weekly-PT_Weekly,E50-(UEL_weekly-PT_Weekly),0) -> 0 | E54: =D54*0.02 -> 0 | G54: 0.02 | H54: =IF(H53=UEL_Fortnightly-PT_Fortnightly,I50-(UEL_Fortnightly-PT_Fortnightly),0) -> 0 | I54: =H54*0.02 -> 0 | K54: 0.02 | L54: =IF(L53=UEL_4weekly-PT_4_Weekly,M50-(UEL_4weekly-PT_4_Weekly),0) -> 0 | M54: =L54*0.02 -> 0 | O54: 0.02 | P54: =IF(P53=UEL_monthly-PT_Monthly,Q50-(UEL_monthly-PT_Monthly),0) -> 0 | Q54: =P54*0.02 -> 0
B56: =IF(Data!C9="WEEKLY",'Umbrella rates'!E56,IF(Data!C9="Fortnightly",'Umbrella rates'!I56,IF(Data!C9="monthly",'Umbrella rates'!Q56,'Umbrella rates'!M56))) -> 0 | D56: NI | E56: =IF(SUM(E53:E55)<0,0,SUM(E53:E55)) -> 0 | H56: NI | I56: =IF(SUM(I53:I55)<0,0,SUM(I53:I55)) -> 0 | L56: NI | M56: =IF(SUM(M53:M55)<0,0,SUM(M53:M55)) -> 0 | P56: NI | Q56: =IF(SUM(Q53:Q55)<0,0,SUM(Q53:Q55)) -> 0
B61: Annual Allowance | C61: 13505 | G61: Anyone on a tax code that begins with C, will have these %s and bands applied for Income Tax.
B62: Taxable income | C62: 170000
B65: Welsh Income Tax
D66: Weekly | H66: F/nightly | L66: 4-weekly | P66: Monthly
D67: Income | E67: =C62 -> 170000 | H67: Income | I67: =C62 -> 170000 | L67: Income | M67: =C62 -> 170000 | P67: Income | Q67: =C62 -> 170000
D68: Minus PA | E68: =E67-C61/52 -> 169740.2885 | H68: Minus PA | I68: =I67-C61/26 -> 169480.5769 | L68: Minus PA | M68: =M67-C61/13 -> 168961.1538 | P68: Minus PA | Q68: =Q67-C61/12 -> 168874.5833
E70: Tax | I70: Tax | M70: Tax | Q70: Tax
C71: 0.19 | D71: =IF(E68>38,38,E68) -> 38 | E71: =D71*0.19 -> 7.22 | G71: 0.19 | H71: =IF(I68>77,77,I68) -> 77 | I71: =H71*0.19 -> 14.63 | K71: 0.19 | L71: =IF(M68>154,154,M68) -> 154 | M71: =L71*0.19 -> 29.26 | O71: 0.19 | P71: =IF(Q68>167,167,Q68) -> 167 | Q71: =P71*0.19 -> 31.73
C72: 0.2 | D72: =IF(E68-D71>195,195,E68-D71) -> 195 | E72: =D72*0.2 -> 39 | G72: 0.2 | H72: =IF(I68-H71>390,390,I68-H71) -> 390 | I72: =H72*0.2 -> 78 | K72: 0.2 | L72: =IF(M68-L71>781,781,M68-L71) -> 781 | M72: =L72*0.2 -> 156.2 | O72: 0.2 | P72: =IF(Q68-P71>846,846,Q68-P71) -> 846 | Q72: =P72*0.2 -> 169.2
C73: 0.21 | D73: =IF(E68-D71-D72>374,374,E68-D71-D72) -> 374 | E73: =D73*0.21 -> 78.54 | G73: 0.21 | H73: =IF(I68-H71-H72>747,747,I68-H71-H72) -> 747 | I73: =H73*0.21 -> 156.87 | K73: 0.21 | L73: =IF(M68-L71-L72>1495,1495,M68-L71-L72) -> 1495 | M73: =L73*0.21 -> 313.95 | O73: 0.21 | P73: =IF(Q68-P71-P72>1619,1619,Q68-P71-P72) -> 1619 | Q73: =P73*0.21 -> 339.99
C74: 0.41 | D74: =IF(E68-D71-D72-D73>2277,2277,E68-D71-D72-D73) -> 2277 | E74: =D74*0.41 -> 933.57 | G74: 0.41 | H74: =IF(I68-H71-H72-H73>4555,4555,I68-H71-H72-H73) -> 4555 | I74: =H74*0.41 -> 1867.55 | K74: 0.41 | L74: =IF(M68-L71-L72-L73>9109,9109,M68-L71-L72-L73) -> 9109 | M74: =L74*0.41 -> 3734.69 | O74: 0.41 | P74: =IF(Q68-P71-P72-P73>9868,9868,Q68-P71-P72-P73) -> 9868 | Q74: =P74*0.41 -> 4045.88
C75: 0.46 | D75: =(E68-D71-D72-D73-D74) -> 166856.2885 | E75: =D75*0.46 -> 76753.89269 | G75: 0.46 | H75: =(I68-H71-H72-H73-H74) -> 163711.5769 | I75: =H75*0.46 -> 75307.32538 | K75: 0.46 | L75: =(M68-L71-L72-L73-L74) -> 157422.1538 | M75: =L75*0.46 -> 72414.19077 | O75: 0.46 | P75: =(Q68-P71-P72-P73-P74) -> 156374.5833 | Q75: =P75*0.46 -> 71932.30833
D77: Tax | E77: =SUM(E71:E76) -> 77812.22269 | H77: Tax | I77: =SUM(I71:I76) -> 77424.37538 | L77: Tax | M77: =SUM(M71:M76) -> 76648.29077 | P77: Tax | Q77: =SUM(Q71:Q76) -> 76519.10833

Sheet PAYE rates (hidden)
B2: Scroll down for Scottish Tax Bands and Pension Calculations | I2: Input the Annual Allowance and Total Taxable Income and the calculations will be made for you!
B4: Annual Allowance | C4: =F4 -> 12500 | E4: =Data!C7 -> 1250L | F4: =IF(RIGHT(E4,1)="L",E5,IF(RIGHT(E4,1)="M",E5,IF(RIGHT(E4,1)="n",E5,IF(RIGHT(E4,1)="T",E5,0)))) -> 12500
B5: Total taxable income | C5: =Calculation!F17 -> 0 | E5: =(LEFT(E4,LEN(E4)-1))*10 -> 12500
B8: Income Tax Calculations | W8: weekly | X8: Fortnightly | Y8: 4-weekly | Z8: monthly
D9: Weekly | H9: F/nightly | L9: 4-weekly | P9: Monthly | V9: BR | W9: 721 | X9: 1442 | Y9: 2885 | Z9: 3125
D10: Allowance | E10: =C4/52*Data!L22 -> 240.3846154 | H10: Allowance | I10: =C4/26 -> 480.7692308 | L10: Allowance | M10: =C4/13 -> 961.5384615 | P10: Allowance | Q10: =C4/12 -> 1041.666667 | V10: HR | W10: 2163 | X10: 4327 | Y10: 8654 | Z10: 9375
D11: Income | E11: =C5 -> 0 | H11: Income | I11: =C5 -> 0 | L11: Income | M11: =C5 -> 0 | P11: Income | Q11: =C5 -> 0 | V11: AR | W11: 2885 | X11: 5770 | Y11: 11538 | Z11: 12500
D12: Minus PA | E12: =E11-E10 -> -240.3846154 | H12: Minus PA | I12: =I11-I10 -> -480.7692308 | L12: Minus PA | M12: =M11-M10 -> -961.5384615 | P12: Minus PA | Q12: =Q11-Q10 -> -1041.666667
E14: Tax | I14: Tax | M14: Tax | Q14: Tax
C15: 0.2 | D15: =IF(E12>BR_W,BR_W,E12) -> -240.3846154 | E15: =IF($E$4="BR",ROUNDDOWN($C$5,0)*C15,IF($E$4="d0",0,IF($E$4="D1",0,ROUNDDOWN(D15,0)*C15))) -> -48 | G15: 0.2 | H15: =IF(I12>BR_F,BR_F,I12) -> -480.7692308 | I15: =IF($E$4="BR",ROUNDDOWN($C$5,0)*G15,IF($E$4="d0",0,IF($E$4="D1",0,ROUNDDOWN(H15,0)*G15))) -> -96 | K15: 0.2 | L15: =IF(M12>BR_4W,BR_4W,M12) -> -961.5384615 | M15: =IF($E$4="BR",ROUNDDOWN($C$5,0)*K15,IF($E$4="d0",0,IF($E$4="D1",0,ROUNDDOWN(L15,0)*K15))) -> -192.2 | O15: 0.2 | P15: =IF(Q12>BR_M,BR_M,Q12) -> -1041.666667 | Q15: =IF($E$4="BR",ROUNDDOWN($C$5,0)*O15,IF($E$4="d0",0,IF($E$4="D1",0,ROUNDDOWN(P15,0)*O15))) -> -208.2 | T15: 37500
C16: 0.4 | D16: =IF(E12-D15>HR_W,HR_W,E12-D15) -> 0 | E16: =IF($E$4="D0",ROUNDDOWN($C$5,0)*C16,IF($E$4="BR",0,IF($E$4="D1",0,ROUNDDOWN(D16,0)*C16))) -> 0 | G16: 0.4 | H16: =IF(I12-H15>HR_F,HR_F,I12-H15) -> 0 | I16: =IF($E$4="D0",ROUNDDOWN($C$5,0)*G16,IF($E$4="BR",0,IF($E$4="D1",0,ROUNDDOWN(H16,0)*G16))) -> 0 | K16: 0.4 | L16: =IF(M12-L15>HR_4W,HR_4W,M12-L15) -> 0 | M16: =IF($E$4="D0",ROUNDDOWN($C$5,0)*K16,IF($E$4="BR",0,IF($E$4="D1",0,ROUNDDOWN(L16,0)*K16))) -> 0 | O16: 0.4 | P16: =IF(Q12-P15>HR_M,HR_M,Q12-P15) -> 0 | Q16: =IF($E$4="D0",ROUNDDOWN($C$5,0)*O16,IF($E$4="BR",0,IF($E$4="D1",0,ROUNDDOWN(P16,0)*O16))) -> 0 | T16: 112499
C17: 0.45 | D17: =E12-D15-D16 -> 0 | E17: =IF($E$4="D1",ROUNDDOWN($C$5,0)*C17,IF($E$4="d0",0,IF($E$4="BR",0,ROUNDDOWN(D17,0)*C17))) -> 0 | G17: 0.45 | H17: =I12-H15-H16 -> 0 | I17: =IF($E$4="D1",ROUNDDOWN($C$5,0)*G17,IF($E$4="d0",0,IF($E$4="BR",0,ROUNDDOWN(H17,0)*G17))) -> 0 | K17: 0.45 | L17: =M12-L15-L16 -> 0 | M17: =IF($E$4="D1",ROUNDDOWN($C$5,0)*K17,IF($E$4="d0",0,IF($E$4="BR",0,ROUNDDOWN(L17,0)*K17))) -> 0 | O17: 0.45 | P17: =Q12-P15-P16 -> 0 | Q17: =IF($E$4="D1",ROUNDDOWN($C$5,0)*O17,IF($E$4="d0",0,IF($E$4="BR",0,ROUNDDOWN(P17,0)*O17))) -> 0
B18: =IF(Data!C9="WEEKLY",'PAYE rates'!E19,IF(Data!C9="Fortnightly",'PAYE rates'!I19,IF(Data!C9="monthly",'PAYE rates'!Q19,'PAYE rates'!M19))) -> -48
B19: =IF(Data!C7="D2"," Invalid Tax Code",IF(B18<0,0,B18)) -> 0 | D19: Tax | E19: =SUM(E15:E18) -> -48 | H19: Tax | I19: =SUM(I15:I18) -> -96 | L19: Tax | M19: =SUM(M15:M18) -> -192.2 | P19: Tax | Q19: =SUM(Q15:Q18) -> -208.2
B23: Annual Allowance | C23: =F4 -> 12500 | G23: Anyone on a tax code that begins with S, will have these %s and bands applied for Income Tax.
B24: Taxable income | C24: =C5 -> 0
B27: Scottish Income Tax
D28: Weekly | H28: F/nightly | L28: 4-weekly | P28: Monthly
D29: Income | E29: =C24 -> 0 | H29: Income | I29: =C24 -> 0 | L29: Income | M29: =C24 -> 0 | P29: Income | Q29: =C24 -> 0
D30: Minus PA | E30: =E29-E10 -> -240.3846154 | H30: Minus PA | I30: =I29-I10 -> -480.7692308 | L30: Minus PA | M30: =M29-M10 -> -961.5384615 | P30: Minus PA | Q30: =Q29-Q10 -> -1041.666667
E32: Tax | I32: Tax | M32: Tax | Q32: Tax | W32: weekly | X32: Fortnightly | Y32: 4-weekly | Z32: monthly
C33: 0.19 | D33: =IF(E30>W33,W33,E30) -> -240.3846154 | E33: =IF($E$4="BR",ROUNDDOWN(0,0)*C33,IF($E$4="D0",ROUNDDOWN(0,0)*C33,IF($E$4="D1",ROUNDDOWN(0,0)*C33,IF($E$4="D2",ROUNDDOWN(0,0)*C33,ROUNDDOWN(D33,0)*C33)))) -> -45.6 | G33: 0.19 | H33: =IF(I30>X33,X33,I30) -> -480.7692308 | I33: =IF($E$4="BR",ROUNDDOWN(0,0)*G33,IF($E$4="D0",ROUNDDOWN(0,0)*G33,IF($E$4="D1",ROUNDDOWN(0,0)*G33,IF($E$4="D2",ROUNDDOWN(0,0)*G33,ROUNDDOWN(H33,0)*G33)))) -> -91.2 | K33: 0.19 | L33: =IF(M30>Y33,Y33,M30) -> -961.5384615 | M33: =IF($E$4="BR",ROUNDDOWN(0,0)*K33,IF($E$4="D0",ROUNDDOWN(0,0)*K33,IF($E$4="D1",ROUNDDOWN(0,0)*K33,IF($E$4="D2",ROUNDDOWN(0,0)*K33,ROUNDDOWN(L33,0)*K33)))) -> -182.59 | O33: 0.19 | P33: =IF(Q30>Z33,Z33,Q30) -> -1041.666667 | Q33: =IF($E$4="BR",ROUNDDOWN(0,0)*O33,IF($E$4="D0",ROUNDDOWN(0,0)*O33,IF($E$4="D1",ROUNDDOWN(0,0)*O33,IF($E$4="D2",ROUNDDOWN(0,0)*O33,ROUNDDOWN(P33,0)*O33)))) -> -197.79 | V33: SR | W33: 39.4 | X33: 78.8 | Y33: 157.6 | Z33: 170.73
C34: 0.2 | D34: =IF(E30-D33>W34,W34,E30-D33) -> 0 | E34: =IF($E$4="BR",ROUNDDOWN($C$24,0)*C34,IF($E$4="D0",ROUNDDOWN(0,0)*C34,IF($E$4="D1",ROUNDDOWN(0,0)*C34,IF($E$4="D2",ROUNDDOWN(0,0)*C34,ROUNDDOWN(D34,0)*C34)))) -> 0 | G34: 0.2 | H34: =IF(I30-H33>X34,X34,I30-H33) -> 0 | I34: =IF($E$4="BR",ROUNDDOWN($C$24,0)*G34,IF($E$4="D0",ROUNDDOWN(0,0)*G34,IF($E$4="D1",ROUNDDOWN(0,0)*G34,IF($E$4="D2",ROUNDDOWN(0,0)*G34,ROUNDDOWN(H34,0)*G34)))) -> 0 | K34: 0.2 | L34: =IF(M30-L33>Y34,Y34,M30-L33) -> 0 | M34: =IF($E$4="BR",ROUNDDOWN($C$24,0)*K34,IF($E$4="D0",ROUNDDOWN(0,0)*K34,IF($E$4="D1",ROUNDDOWN(0,0)*K34,IF($E$4="D2",ROUNDDOWN(0,0)*K34,ROUNDDOWN(L34,0)*K34)))) -> 0 | O34: 0.2 | P34: =IF(Q30-P33>Z34,Z34,Q30-P33) -> 0 | Q34: =IF($E$4="BR",ROUNDDOWN($C$24,0)*O34,IF($E$4="D0",ROUNDDOWN(0,0)*O34,IF($E$4="D1",ROUNDDOWN(0,0)*O34,IF($E$4="D2",ROUNDDOWN(0,0)*O34,ROUNDDOWN(P34,0)*O34)))) -> 0 | V34: BR | W34: 199.9 | X34: 399.8 | Y34: 799.6 | Z34: 866.23
C35: 0.21 | D35: =IF(E30-D33-D34>W35,W35,E30-D33-D34) -> 0 | E35: =IF($E$4="BR",ROUNDDOWN(0,0)*C35,IF($E$4="D0",ROUNDDOWN($C$24,0)*C35,IF($E$4="D1",ROUNDDOWN(0,0)*C35,IF($E$4="D2",ROUNDDOWN(0,0)*C35,ROUNDDOWN(D35,0)*C35)))) -> 0 | G35: 0.21 | H35: =IF(I30-H33-H34>X35,X35,I30-H33-H34) -> 0 | I35: =IF($E$4="BR",ROUNDDOWN(0,0)*G35,IF($E$4="D0",ROUNDDOWN($C$24,0)*G35,IF($E$4="D1",ROUNDDOWN(0,0)*G35,IF($E$4="D2",ROUNDDOWN(0,0)*G35,ROUNDDOWN(H35,0)*G35)))) -> 0 | K35: 0.21 | L35: =IF(M30-L33-L34>Y35,Y35,M30-L33-L34) -> 0 | M35: =IF($E$4="BR",ROUNDDOWN(0,0)*K35,IF($E$4="D0",ROUNDDOWN($C$24,0)*K35,IF($E$4="D1",ROUNDDOWN(0,0)*K35,IF($E$4="D2",ROUNDDOWN(0,0)*K35,ROUNDDOWN(L35,0)*K35)))) -> 0 | O35: 0.21 | P35: =IF(Q30-P33-P34>Z35,Z35,Q30-P33-P34) -> 0 | Q35: =IF($E$4="BR",ROUNDDOWN(0,0)*O35,IF($E$4="D0",ROUNDDOWN($C$24,0)*O35,IF($E$4="D1",ROUNDDOWN(0,0)*O35,IF($E$4="D2",ROUNDDOWN(0,0)*O35,ROUNDDOWN(P35,0)*O35)))) -> 0 | V35: IR | W35: 355.5 | X35: 711 | Y35: 1422 | Z35: 1540.5
C36: 0.41 | D36: =IF(E30-D33-D34-D35>W36,W36,E30-D33-D34-D35) -> 0 | E36: =IF($E$4="BR",ROUNDDOWN(0,0)*C36,IF($E$4="D0",ROUNDDOWN(0,0)*C36,IF($E$4="D1",ROUNDDOWN($C$24,0)*C36,IF($E$4="D2",ROUNDDOWN(0,0)*C36,ROUNDDOWN(D36,0)*C36)))) -> 0 | G36: 0.41 | H36: =IF(I30-H33-H34-H35>X36,X36,I30-H33-H34-H35) -> 0 | I36: =IF($E$4="BR",ROUNDDOWN(0,0)*G36,IF($E$4="D0",ROUNDDOWN(0,0)*G36,IF($E$4="D1",ROUNDDOWN($C$24,0)*G36,IF($E$4="D2",ROUNDDOWN(0,0)*G36,ROUNDDOWN(H36,0)*G36)))) -> 0 | K36: 0.41 | L36: =IF(M30-L33-L34-L35>Y36,Y36,M30-L33-L34-L35) -> 0 | M36: =IF($E$4="BR",ROUNDDOWN(0,0)*K36,IF($E$4="D0",ROUNDDOWN(0,0)*K36,IF($E$4="D1",ROUNDDOWN($C$24,0)*K36,IF($E$4="D2",ROUNDDOWN(0,0)*K36,ROUNDDOWN(L36,0)*K36)))) -> 0 | O36: 0.41 | P36: =IF(Q30-P33-P34-P35>Z36,Z36,Q30-P33-P34-P35) -> 0 | Q36: =IF($E$4="BR",ROUNDDOWN(0,0)*O36,IF($E$4="D0",ROUNDDOWN(0,0)*O36,IF($E$4="D1",ROUNDDOWN($C$24,0)*O36,IF($E$4="D2",ROUNDDOWN(0,0)*O36,ROUNDDOWN(P36,0)*O36)))) -> 0 | V36: HR | W36: 2289.81 | X36: 4579.62 | Y36: 9159.24 | Z36: 9922.51
C37: 0.46 | D37: =(E30-D33-D34-D35-D36) -> 0 | E37: =IF($E$4="BR",ROUNDDOWN(0,0)*C37,IF($E$4="D0",ROUNDDOWN(0,0)*C37,IF($E$4="D1",ROUNDDOWN(0,0)*C37,IF($E$4="D2",ROUNDDOWN($C$24,0)*C37,ROUNDDOWN(D37,0)*C37)))) -> 0 | G37: 0.46 | H37: =IF(H36=0,0,(I30-H33-H34-H35-H36)) -> 0 | I37: =IF($E$4="BR",ROUNDDOWN(0,0)*G37,IF($E$4="D0",ROUNDDOWN(0,0)*G37,IF($E$4="D1",ROUNDDOWN(0,0)*G37,IF($E$4="D2",ROUNDDOWN($C$24,0)*G37,ROUNDDOWN(H37,0)*G37)))) -> 0 | K37: 0.46 | L37: =IF(L36=0,0,(M30-L33-L34-L35-L36)) -> 0 | M37: =IF($E$4="BR",ROUNDDOWN(0,0)*K37,IF($E$4="D0",ROUNDDOWN(0,0)*K37,IF($E$4="D1",ROUNDDOWN(0,0)*K37,IF($E$4="D2",ROUNDDOWN($C$24,0)*K37,ROUNDDOWN(L37,0)*K37)))) -> 0 | O37: 0.46 | P37: =IF(P36=0,0,(Q30-P33-P34-P35-P36)) -> 0 | Q37: =IF($E$4="BR",ROUNDDOWN(0,0)*O37,IF($E$4="D0",ROUNDDOWN(0,0)*O37,IF($E$4="D1",ROUNDDOWN(0,0)*O37,IF($E$4="D2",ROUNDDOWN($C$24,0)*O37,ROUNDDOWN(P37,0)*O37)))) -> 0 | V37: AR | W37: 2884 | X37: 5768 | Y37: 11536 | Z37: 12497.33
B38: =IF(Data!C9="WEEKLY",'PAYE rates'!E39,IF(Data!C9="Fortnightly",'PAYE rates'!I39,IF(Data!C9="monthly",'PAYE rates'!Q39,'PAYE rates'!M39))) -> -45.6
B39: =IF(B38<0,0,B38) -> 0 | D39: Tax | E39: =SUM(E33:E38) -> -45.6 | H39: Tax | I39: =SUM(I33:I38) -> -91.2 | L39: Tax | M39: =SUM(M33:M38) -> -182.59 | P39: Tax | Q39: =SUM(Q33:Q38) -> -197.79
W43: weekly | X43: Fortnightly | Y43: 4-weekly | Z43: monthly
B44: Threshold rollover | C44: =Data!L22 -> 1 | E44: Input the number of pay periods rolled over. ALWAYS input 1 if on non-cumulative code. | V44: PT | W44: 166 | X44: 332 | Y44: 664 | Z44: 719
B45: Taxable income | C45: =C5 -> 0 | V45: UEL | W45: 962 | X45: 1924 | Y45: 3848 | Z45: 4167
B47: National Insurance
D48: Weekly | H48: F/nightly | L48: 4-weekly | P48: Monthly
D49: Income | E49: =C45 -> 0 | H49: Income | I49: =C45 -> 0 | L49: Income | M49: =C45 -> 0 | P49: Income | Q49: =C45 -> 0
D50: Minus TH | E50: =E49-PT_Weekly*C44 -> -166 | H50: Minus TH | I50: =I49-PT_Fortnightly*C44 -> -332 | L50: Minus TH | M50: =M49-PT_4_Weekly*C44 -> -664 | P50: Minus TH | Q50: =Q49-PT_Monthly*C44 -> -719
E52: NI | I52: NI | M52: NI | Q52: NI
C53: 0.12 | D53: =IF(E50>UEL_weekly-PT_Weekly,UEL_weekly-PT_Weekly,E50) -> -166 | E53: =D53*0.12 -> -19.92 | G53: 0.12 | H53: =IF(I50>UEL_Fortnightly-PT_Fortnightly,UEL_Fortnightly-PT_Fortnightly,I50) -> -332 | I53: =H53*0.12 -> -39.84 | K53: 0.12 | L53: =IF(M50>UEL_4weekly-PT_4_Weekly,(UEL_4weekly-PT_4_Weekly),M50) -> -664 | M53: =L53*0.12 -> -79.68 | O53: 0.12 | P53: =IF(Q50>UEL_monthly-PT_Monthly,UEL_monthly-PT_Monthly,Q50) -> -719 | Q53: =P53*0.12 -> -86.28
C54: 0.02 | D54: =IF(D53=UEL_weekly-PT_Weekly,E50-(UEL_weekly-PT_Weekly),0) -> 0 | E54: =D54*0.02 -> 0 | G54: 0.02 | H54: =IF(H53=UEL_Fortnightly-PT_Fortnightly,I50-(UEL_Fortnightly-PT_Fortnightly),0) -> 0 | I54: =H54*0.02 -> 0 | K54: 0.02 | L54: =IF(L53=UEL_4weekly-PT_4_Weekly,M50-(UEL_4weekly-PT_4_Weekly),0) -> 0 | M54: =L54*0.02 -> 0 | O54: 0.02 | P54: =IF(P53=UEL_monthly-PT_Monthly,Q50-(UEL_monthly-PT_Monthly),0) -> 0 | Q54: =P54*0.02 -> 0
B56: =IF(Data!C9="WEEKLY",'PAYE rates'!E56,IF(Data!C9="Fortnightly",'PAYE rates'!I56,IF(Data!C9="monthly",'PAYE rates'!Q56,'PAYE rates'!M56))) -> 0 | D56: NI | E56: =IF(SUM(E53:E55)<0,0,SUM(E53:E55)) -> 0 | H56: NI | I56: =IF(SUM(I53:I55)<0,0,SUM(I53:I55)) -> 0 | L56: NI | M56: =IF(SUM(M53:M55)<0,0,SUM(M53:M55)) -> 0 | P56: NI | Q56: =IF(SUM(Q53:Q55)<0,0,SUM(Q53:Q55)) -> 0
B57: =IF(Data!C9="WEEKLY",'PAYE rates'!E57,IF(Data!C9="Fortnightly",'PAYE rates'!I57,IF(Data!C9="monthly",'PAYE rates'!Q57,'PAYE rates'!M57))) -> -22.908 | C57: 0.138 | D57: ERNI | E57: =E50*C57 -> -22.908 | G57: 0.138 | H57: ERNI | I57: =I50*G57 -> -45.816 | K57: 0.138 | L57: ERNI | M57: =M50*K57 -> -91.632 | O57: 0.138 | P57: ERNI | Q57: =Q50*O57 -> -99.222
B61: Annual Allowance | C61: 13505 | G61: Anyone on a tax code that begins with C, will have these %s and bands applied for Income Tax.
B62: Taxable income | C62: 170000
B65: Welsh Income Tax
D66: Weekly | H66: F/nightly | L66: 4-weekly | P66: Monthly
D67: Income | E67: =C62 -> 170000 | H67: Income | I67: =C62 -> 170000 | L67: Income | M67: =C62 -> 170000 | P67: Income | Q67: =C62 -> 170000
D68: Minus PA | E68: =E67-C61/52 -> 169740.2885 | H68: Minus PA | I68: =I67-C61/26 -> 169480.5769 | L68: Minus PA | M68: =M67-C61/13 -> 168961.1538 | P68: Minus PA | Q68: =Q67-C61/12 -> 168874.5833
E70: Tax | I70: Tax | M70: Tax | Q70: Tax
C71: 0.19 | D71: =IF(E68>38,38,E68) -> 38 | E71: =D71*0.19 -> 7.22 | G71: 0.19 | H71: =IF(I68>77,77,I68) -> 77 | I71: =H71*0.19 -> 14.63 | K71: 0.19 | L71: =IF(M68>154,154,M68) -> 154 | M71: =L71*0.19 -> 29.26 | O71: 0.19 | P71: =IF(Q68>167,167,Q68) -> 167 | Q71: =P71*0.19 -> 31.73
C72: 0.2 | D72: =IF(E68-D71>195,195,E68-D71) -> 195 | E72: =D72*0.2 -> 39 | G72: 0.2 | H72: =IF(I68-H71>390,390,I68-H71) -> 390 | I72: =H72*0.2 -> 78 | K72: 0.2 | L72: =IF(M68-L71>781,781,M68-L71) -> 781 | M72: =L72*0.2 -> 156.2 | O72: 0.2 | P72: =IF(Q68-P71>846,846,Q68-P71) -> 846 | Q72: =P72*0.2 -> 169.2
C73: 0.21 | D73: =IF(E68-D71-D72>374,374,E68-D71-D72) -> 374 | E73: =D73*0.21 -> 78.54 | G73: 0.21 | H73: =IF(I68-H71-H72>747,747,I68-H71-H72) -> 747 | I73: =H73*0.21 -> 156.87 | K73: 0.21 | L73: =IF(M68-L71-L72>1495,1495,M68-L71-L72) -> 1495 | M73: =L73*0.21 -> 313.95 | O73: 0.21 | P73: =IF(Q68-P71-P72>1619,1619,Q68-P71-P72) -> 1619 | Q73: =P73*0.21 -> 339.99
C74: 0.41 | D74: =IF(E68-D71-D72-D73>2277,2277,E68-D71-D72-D73) -> 2277 | E74: =D74*0.41 -> 933.57 | G74: 0.41 | H74: =IF(I68-H71-H72-H73>4555,4555,I68-H71-H72-H73) -> 4555 | I74: =H74*0.41 -> 1867.55 | K74: 0.41 | L74: =IF(M68-L71-L72-L73>9109,9109,M68-L71-L72-L73) -> 9109 | M74: =L74*0.41 -> 3734.69 | O74: 0.41 | P74: =IF(Q68-P71-P72-P73>9868,9868,Q68-P71-P72-P73) -> 9868 | Q74: =P74*0.41 -> 4045.88
C75: 0.46 | D75: =(E68-D71-D72-D73-D74) -> 166856.2885 | E75: =D75*0.46 -> 76753.89269 | G75: 0.46 | H75: =(I68-H71-H72-H73-H74) -> 163711.5769 | I75: =H75*0.46 -> 75307.32538 | K75: 0.46 | L75: =(M68-L71-L72-L73-L74) -> 157422.1538 | M75: =L75*0.46 -> 72414.19077 | O75: 0.46 | P75: =(Q68-P71-P72-P73-P74) -> 156374.5833 | Q75: =P75*0.46 -> 71932.30833
D77: Tax | E77: =SUM(E71:E76) -> 77812.22269 | H77: Tax | I77: =SUM(I71:I76) -> 77424.37538 | L77: Tax | M77: =SUM(M71:M76) -> 76648.29077 | P77: Tax | Q77: =SUM(Q71:Q76) -> 76519.10833
